Cogmind - Beta 11 @@@ ROGUE MODE // 2022.04.07 @ 11:49:17 Player: Wisp Result: Destroyed by S-27 Virus with Autogun Performance ------------- Evolutions (3) 1500 Regions Visited (6) 1200 Robots Destroyed (1) 5 Value Destroyed (10) 10 Prototype IDs (0) 0 Alien Tech Used (0) 0 Bonus (0) 0 TOTAL SCORE: 2715 Bonus ------- None Cogmind --------- Core Integrity 0/700 Matter 86/300 Energy 98/100 System Corruption 3% Temperature Cool (0) Movement Core (50) Location -7/Lower Caves Parts ------- > --- POWER (7) -------- (None) > --- PROPULSION (2) --- (None) > --- UTILITY (2) ------ (None) > --- WEAPON (2) ------- (None) > --- INVENTORY (5) ---- (None) Peak State ------------ None Favorites ----------- Power None Propulsion None Utility None Weapon None Build | -11 -10 -10 -9 -8 -7 -7 ------- Run | Scr Mat Min Mat Mat Fac Low Slots Evolved 6 | . . . 2 2 2 . Power 6 | . . . 2 2 2 . Propulsion . | . . . . . . . Utility . | . . . . . . . Weapon . | . . . . . . . Parts Attached . | . . . . . . . Power . | . . . . . . . Engine . | . . . . . . . Core . | . . . . . . . Reactor . | . . . . . . . Propulsion . | . . . . . . . Treads . | . . . . . . . Leg . | . . . . . . . Wheel . | . . . . . . . Hover . | . . . . . . . Flight . | . . . . . . . Utility . | . . . . . . . Device . | . . . . . . . Storage . | . . . . . . . Processor . | . . . . . . . Hackware . | . . . . . . . Protection . | . . . . . . . Artifact . | . . . . . . . Weapon . | . . . . . . . Energy Gun . | . . . . . . . Energy Cannon . | . . . . . . . Ballistic Gun . | . . . . . . . Ballistic Cannon . | . . . . . . . Launcher . | . . . . . . . Special Weapon . | . . . . . . . Impact Weapon . | . . . . . . . Slashing Weapon . | . . . . . . . Piercing Weapon . | . . . . . . . Special Melee Weapon . | . . . . . . . Unidentified Prototypes . | . . . . . . . Parts Lost . | . . . . . . . Power . | . . . . . . . Propulsion . | . . . . . . . Utility . | . . . . . . . Weapon . | . . . . . . . Highest Loss Streak . | . . . . . . . To Critical Strikes . | . . . . . . . Average Slot Usage (%) . | . . . . . . . Naked Turns 460 | . 56 18 38 68 111 169 Heaviest Build . | . . . . . . . Greatest Support 3 | 3 3 3 3 3 3 3 Greatest Overweight (x) . | . . . . . . . Average Overweight (x) . | . . . . . . . Largest Inventory Capacity 5 | 5 5 5 5 5 5 5 Average Capacity 5 | 5 5 5 5 5 5 5 Most Carried . | . . . . . . . Average Carried . | . . . . . . . Final Capacity 5 | 5 5 5 5 5 5 5 Final Carried . | . . . . . . . Class Distribution -------------------- 100% | Mutant Dominant Class ---------------- Mutant | -10/Materials Mutant | -10/Mines Mutant | -9/Materials Mutant | -8/Materials Mutant | -7/Factory Mutant | -7/Lower Caves Resources | -11 -10 -10 -9 -8 -7 -7 ----------- Run | Scr Mat Min Mat Mat Fac Low Matter Collected . | . . . . . . . Remotely . | . . . . . . . Salvage Created 16 | . . 16 . . . . Parts 2 | . . 2 . . . . Haulers Intercepted . | . . . . . . . Recyclers Shooed . | . . . . . . . Parts Field Recycled . | . . . . . . . Retrieved Matter . | . . . . . . . Parts Self-Destructed . | . . . . . . . Prevented 1 | . . . . . . 1 Kills | -11 -10 -10 -9 -8 -7 -7 ------- Run | Scr Mat Min Mat Mat Fac Low Combat Hostiles Destroyed 1 | . . 1 . . . . Melee 1 | . . 1 . . . . Classes Destroyed 1 | . . 1 . . . . Swarmer 1 | . . 1 . . . . Best Kill Streak 1 | . . 1 . . . . Combat Bots Only 1 | . . 1 . . . . Max Kills in Single Turn 1 | . . 1 . . . . Gunslinging . | . . . . . . . Exploded . | . . . . . . . Melee 1 | . . 1 . . . . Uniques/NPCs Destroyed . | . . . . . . . Combat | -11 -10 -10 -9 -8 -7 -7 -------- Run | Scr Mat Min Mat Mat Fac Low Damage Taken 1006 | . . 33 . 269 328 376 Core 1006 | . . 33 . 269 328 376 Absorbed by Shields . | . . . . . . . Core Remaining (%) 84 | 100 . 86 100 51 . . Volleys Fired . | . . . . . . . Largest . | . . . . . . . Hottest . | . . . . . . . Shots Fired . | . . . . . . . Gun . | . . . . . . . Cannon . | . . . . . . . Launcher . | . . . . . . . Special . | . . . . . . . Kinetic . | . . . . . . . Thermal . | . . . . . . . Explosive . | . . . . . . . Electromagnetic . | . . . . . . . Robot Hit Streak . | . . . . . . . Robot Miss Streak . | . . . . . . . Penetration Max . | . . . . . . . Secondary Targets . | . . . . . . . Shots Hit Robots . | . . . . . . . Core Hits 1 | . . 1 . . . . Critical Kills . | . . . . . . . Critical Parts Destroyed . | . . . . . . . Critical Strikes . | . . . . . . . Melee Attacks . | . . . . . . . Impact . | . . . . . . . Slashing . | . . . . . . . Piercing . | . . . . . . . Sneak Attacks . | . . . . . . . Combat Hostiles . | . . . . . . . Follow-up Attacks . | . . . . . . . Damage Inflicted 11 | . . 11 . . . . Guns . | . . . . . . . Cannons . | . . . . . . . Explosions . | . . . . . . . Melee . | . . . . . . . Ramming 11 | . . 11 . . . . Kinetic . | . . . . . . . Thermal . | . . . . . . . Explosive . | . . . . . . . Electromagnetic . | . . . . . . . Impact . | . . . . . . . Slashing . | . . . . . . . Piercing . | . . . . . . . Highest Corruption 3 | . . . . 1 3 3 Average Corruption 2 | . . . . 1 2 3 Corruption Purged . | . . . . . . . Corruption Blocked . | . . . . . . . Effects 6 | . . . . . 1 5 Message Errors 2 | . . . . . . 2 Matter Fused 2 | . . . . . . 2 Data Loss (minor) 1 | . . . . . 1 . Data Loss (major) 1 | . . . . . . 1 Overload Shots . | . . . . . . . Overflow Damage . | . . . . . . . Projectiles . | . . . . . . . Explosions . | . . . . . . . Melee . | . . . . . . . Knockbacks . | . . . . . . . Impact . | . . . . . . . Kinetic . | . . . . . . . Secondary . | . . . . . . . Self-Inflicted Damage 5 | . . 5 . . . . Shots . | . . . . . . . Rammed 1 | . . 1 . . . . Targets Rammed 1 | . . 1 . . . . Kicked . | . . . . . . . Crushed . | . . . . . . . Highest Temperature 2 | . . . . . 2 . Average Temperature 2 | . . . . . 2 . Received Heat Transfer 216 | . . . . 108 108 . Siege Activations . | . . . . . . . Robots Corrupted . | . . . . . . . Combat Hostiles . | . . . . . . . Parts Fried . | . . . . . . . Impact Corruptions . | . . . . . . . Robots Melted . | . . . . . . . Combat Hostiles . | . . . . . . . Parts Melted . | . . . . . . . Heat Transferred . | . . . . . . . Parts Sabotaged . | . . . . . . . Parts Stolen . | . . . . . . . Parts Stripped . | . . . . . . . Power Chain Reactions . | . . . . . . . Missiles Intercepted . | . . . . . . . Alert | -11 -10 -10 -9 -8 -7 -7 ------- Run | Scr Mat Min Mat Mat Fac Low Peak Influence 178 | . 6 16 32 178 170 . Initial 80 | . . 1 17 13 80 . Average 55 | . 2 4 25 55 105 . Maximum Alert Level . | . . . . . . . Low Security (%) 100 | 100 100 100 100 100 100 . Level 1 . | . . . . . . . Level 2 . | . . . . . . . Level 3 . | . . . . . . . Level 4 . | . . . . . . . Level 5 . | . . . . . . . High Security . | . . . . . . . Max Security . | . . . . . . . Squads Dispatched 2 | . 1 . . 1 . . Investigation 1 | . 1 . . . . . Extermination . | . . . . . . . Reinforcement 1 | . . . . 1 . . Assault . | . . . . . . . Garrison . | . . . . . . . Intercept . | . . . . . . . Searches Triggered . | . . . . . . . Construction Impeded . | . . . . . . . Haulers Reinforced . | . . . . . . . Active Scanning Responses . | . . . . . . . Cargo Convoy Interrupts . | . . . . . . . Stealth | -11 -10 -10 -9 -8 -7 -7 --------- Run | Scr Mat Min Mat Mat Fac Low Distress Signals . | . . . . . . . Communications Jammed . | . . . . . . . Distress Signals . | . . . . . . . Times Spotted 40 | . . 6 2 15 12 5 Peak Tracking Total 12 | . . 5 2 12 9 5 Tactical Retreats 6 | . . . . 2 3 1 Traps | -11 -10 -10 -9 -8 -7 -7 ------- Run | Scr Mat Min Mat Mat Fac Low Traps Triggered 2 | . 1 . . 1 . . Indirectly . | . . . . . . . Trap Hack Attempts . | . . . . . . . Triggered . | . . . . . . . Disarmed . | . . . . . . . Reprogrammed . | . . . . . . . Reused . | . . . . . . . Traps Extracted . | . . . . . . . Installed . | . . . . . . . Triggered 1 | . . . . . . 1 Machines | -11 -10 -10 -9 -8 -7 -7 ---------- Run | Scr Mat Min Mat Mat Fac Low Machines Disabled . | . . . . . . . Max in Single Turn . | . . . . . . . Machines Sabotaged . | . . . . . . . Garrisons Compromised . | . . . . . . . Overloaded Fab Kills . | . . . . . . . Hacking | -11 -10 -10 -9 -8 -7 -7 --------- Run | Scr Mat Min Mat Mat Fac Low Machines Accessed 3 | . 1 . . 1 . 1 Terminals 2 | . 1 . . 1 . . Fabricators . | . . . . . . . Repair Stations . | . . . . . . . Recycling Units . | . . . . . . . Scanalyzers . | . . . . . . . Garrison Access . | . . . . . . . Total Hacks 7 | . 3 . . 3 . 1 Successful 4 | . 2 . . 1 . 1 Failed 3 | . 1 . . 2 . . Catastrophic . | . . . . . . . Database Lockouts . | . . . . . . . Manual 8 | . 2 . . 3 . 3 Terminals 6 | . 3 . . 3 . . Fabricators . | . . . . . . . Repair Stations . | . . . . . . . Recycling Units . | . . . . . . . Scanalyzers . | . . . . . . . Garrison Access . | . . . . . . . Terminal Hacks 4 | . 2 . . 1 . 1 Record 1 | . . . . . . 1 Locate Traps 1 | . 1 . . . . . Zone Layout 2 | . 1 . . 1 . . Fabricator Hacks . | . . . . . . . Repair Station Hacks . | . . . . . . . Recycling Unit Hacks . | . . . . . . . Scanalyzer . | . . . . . . . Garrison Access Hacks . | . . . . . . . Unauthorized Hacks . | . . . . . . . Terminals . | . . . . . . . Fabricators . | . . . . . . . Repair Stations . | . . . . . . . Recycling Units . | . . . . . . . Scanalyzers . | . . . . . . . Garrison Access . | . . . . . . . Data Cores Recovered . | . . . . . . . Used . | . . . . . . . Hacking Detections 2 | . 1 . . 1 . . Full Trace Events . | . . . . . . . Feedback Events . | . . . . . . . Feedback Blocked . | . . . . . . . Robot Schematics Acquired . | . . . . . . . Robots Built . | . . . . . . . Authchips . | . . . . . . . Time . | . . . . . . . Total Robot Build Rating . | . . . . . . . Part Schematics Acquired . | . . . . . . . Parts Built . | . . . . . . . Authchips . | . . . . . . . Time . | . . . . . . . Total Part Build Rating . | . . . . . . . Parts Repaired . | . . . . . . . Time . | . . . . . . . Parts Recycled . | . . . . . . . Recycled Matter . | . . . . . . . Retrieved Matter . | . . . . . . . Retrieved Components . | . . . . . . . Parts Scanalyzed . | . . . . . . . Part Schematics Acquired . | . . . . . . . Parts Damaged . | . . . . . . . Bothacking | -11 -10 -10 -9 -8 -7 -7 ------------ Run | Scr Mat Min Mat Mat Fac Low Used RIF Installer . | . . . . . . . Robots Hacked . | . . . . . . . Non-combat . | . . . . . . . Combat . | . . . . . . . Robot Hacks Applied . | . . . . . . . Relay Couplers Released . | . . . . . . . Fabnet Peak Effective % . | . . . . . . . Robots Rewired . | . . . . . . . Allies Hacked . | . . . . . . . Hacks Repelled . | . . . . . . . Allies | -11 -10 -10 -9 -8 -7 -7 -------- Run | Scr Mat Min Mat Mat Fac Low Total Allies . | . . . . . . . Largest Group . | . . . . . . . Highest-Rated Group . | . . . . . . . Highest-Rated Ally . | . . . . . . . Total Orders . | . . . . . . . Ally Attacks . | . . . . . . . Total Damage . | . . . . . . . Kills . | . . . . . . . Allies Corrupted . | . . . . . . . Allies Melted . | . . . . . . . Intel | -11 -10 -10 -9 -8 -7 -7 ------- Run | Scr Mat Min Mat Mat Fac Low Robot Analysis Total . | . . . . . . . Derelict Logs Recovered . | . . . . . . . Drone Launches . | . . . . . . . Drone Recoveries . | . . . . . . . Exploration | -11 -10 -10 -9 -8 -7 -7 ------------- Run | Scr Mat Min Mat Mat Fac Low Turns Passed 469 | 9 56 18 38 68 111 169 Spaces Moved 897 | 18 112 34 75 136 222 300 Core 897 | 18 112 34 75 136 222 300 Treads . | . . . . . . . Legs . | . . . . . . . Wheels . | . . . . . . . Hover . | . . . . . . . Flight . | . . . . . . . Fastest Speed 50 | 50 50 50 50 50 50 50 Average Speed 50 | 50 50 50 50 50 50 50 Slowest Speed 50 | 50 50 50 50 50 50 50 Overloaded Moves . | . . . . . . . Propulsion Burnouts . | . . . . . . . Robots Hopped . | . . . . . . . Cave-ins Triggered . | . . . . . . . Exploration Rate (%) 16 | 3 24 15 12 20 8 35 Regions Visited 6 Branch Regions 2 Pre-discovered Areas . | . . . . . . . Known Exits Taken . | . . . . . . . Unknown Exits Taken 6 | 1 1 1 1 1 1 . Scrap Searched . | . . . . . . . Spaces Dug . | . . . . . . . Terrain Destroyed . | . . . . . . . Melee . | . . . . . . . Projectile . | . . . . . . . AOE . | . . . . . . . Terrain Rammed . | . . . . . . . Walls Destroyed . | . . . . . . . Machines Disabled . | . . . . . . . Actions | -11 -10 -10 -9 -8 -7 -7 --------- Run | Scr Mat Min Mat Mat Fac Low Total 911 | 17 111 34 74 135 221 319 Wait 19 | . . . . . . 19 Move 892 | 17 111 34 74 135 221 300 Hop . | . . . . . . . Pick Up . | . . . . . . . Fast Attach . | . . . . . . . Attach . | . . . . . . . Detach . | . . . . . . . Swap . | . . . . . . . Drop . | . . . . . . . Fire . | . . . . . . . Melee . | . . . . . . . Ram . | . . . . . . . Kick . | . . . . . . . Crush . | . . . . . . . Escape Stasis . | . . . . . . . Rewire . | . . . . . . . Trap . | . . . . . . . Miscellaneous . | . . . . . . . Route ------- -11/Scrapyard -10/Materials -10/Mines -9/Materials -8/Materials -7/Factory -7/Lower Caves History --------- Turn | Location | Event 4 | -11/Scrapyard | Discovered new exit (range 13) 10 | -11/Scrapyard | Entered Materials 59 | -10/Materials | Discovered new exit (range 10) 66 | -10/Materials | Entered Mines 79 | -10/Mines | Discovered new exit (range 10) 84 | -10/Mines | Entered Materials 84 | -9/Materials | Evolved 2 slots: Power x2 114 | -9/Materials | Discovered new exit (range 15) 122 | -9/Materials | Entered another Materials area 122 | -8/Materials | Evolved 2 slots: Power x2 183 | -8/Materials | Discovered new exit (range 15) 190 | -8/Materials | Entered Factory 190 | -7/Factory | Evolved 2 slots: Power x2 294 | -7/Factory | Discovered new exit (range 15) 301 | -7/Factory | Entered Lower Caves 305 | -7/Lower Caves | Build established: Mutant 390 | -7/Lower Caves | Core integrity fell below 50% 429 | -7/Lower Caves | Core integrity fell below 20% 470 | -7/Lower Caves | Destroyed by S-27 Virus with Autogun Last Messages --------------- 00267_ Critical hit (Burn: +37). 00268_ K-01 Serf pushes P-60 Hacker. 00268_ K-01 Serf collects debris. 00269_ U-05 Engineer destroyed. 00276_ R-06 Scavenger collects Terrain Scan Processor. 00277_ System corrupted: Component data lost. 00294_ EXIT=FOUND LOCATION=UNKNOWN GOAL=ESCAPE 00337_ System corrupted: Matter fused (-7). 00367_ I5>>UADAXAMPKS#7RE 00464_ Connecting with WAR.Sys... 00464_ Current location identified: Lower Caves >>Record "Event 548073543679" Some of the machines are acting funny. Map ----- +----------------------------------------------------+ | | | | | | | | | | | | | | | | | | | | | | | | | | | ?????????????????????????????????????????????????? | | ?????????????????????????????????????????????????? | | ?????????????????????????????????????????????????? | | ?????????????????????????????????????????????????? | | ?????????????????????????????????????????????????? | | ?????????????????????????????????????????????????? | | ?????????????????????????????????????????????????? | | ?????????????????????????????????????????????????? | | ?????????????????????????????????????????????????? | | ?????????????????????????????????????????????????? | | ?????????????????????????????????????????????????? | | ?????????????################????????????????????? | | ?????????????# s @ #????????????????????? | | ?????????????# ### ### #???????????????????? | | ?????????????# #### #?## #???????????????????? | | ?????????????# #""# # ?? #?????????????####??# | | ?????????????# X"## ?" #?##?????????## ##?# | | ?????????????# # #X # "# ## #???????### ### | | ?????????????# #" ## # "#! # #??????## | | ?????????????# #" "# $# #?????## | | ?????????????# #" ! $"# # #?????# ### | | ?????????????# #" "# #?????# ##### | | ???? ????# #"" ""# #???##?# #??# | | ???? ??# ##""" ""# #???# ## #??## | | ????# # ##""""" #???# #???## | | ?????# #### #???# #????? | | ?????# # #????## #??##? | | ????# ## #??##### #??# # | | ???# ### #?## ##?# ## #??# | | ?? ????# #???#### ## ### ##??# | | ?? ?????# #???????# ###### ### ##???# | | ????????# ????????# #????## #?# ####???## | | ???????? ???????? ?????# #?# ##??????# | | ??????? ???????? ??# #### #???????## | | ?????? ?????????"""" # ### ##??????## | | ????? ????????"""" ## ## ##?##??# | | ?????? ???????? " " ## #?# #?#! | +----------------------------------------------------+ Best States ------------- Heat Dissipation 34 Energy Generation 5 Energy Capacity 100 Matter Stores 100 Matter Capacity 300 Sight Range 16 Terrain Scan Density 10 Evasion (%) 50 Item Schematics ----------------- None Robot Schematics ------------------ None Fabricated ------------ Nothing Alien Tech Used ----------------- None Achievements -------------- None Challenges ------------ None Game ------ Seed HelicalPoweredInterpreter Manual? 0 Play Time 00:10:31 Cumulative 35.8 hours Start 2022.04.07 @ 11:41:10 End 2022.04.07 @ 11:49:17 Sessions 1 Manual Loads 0 Difficulty Rogue Special Mode None Game No. 26 Rogue 26 Adventurer 0 Explorer 0 Win Type - Total 0 Types 0/0/0/0/0/0/0/0/0 Lore% 24 Gallery% 33 Achievement% 25 Wizard Run 0 Options --------- ASCII 0 Keyboard 0 Movement Mouse Keybinds 0 Fullscreen 1 Font 18/SmallcapsGlow Map View 76x50 Tactical HUD 1 Map Filters NONE Filters NONE Steam 1 RUN: c40ddf34-b22f-4ded-984a-a3cb58e236ad